bitfinex-derivatives/quotes_BTCF0:USTF0_20250922
["timestamp","ask_amount","ask_price","bid_price","bid_amount"]
[1758546108395,0.0196,112770.0,112760.0,2.2092877]
[1758546109495,0.0196,112770.0,112760.0,2.12983997]
[1758546110098,0.0196,112770.0,112760.0,2.2092877]
[1758546111599,0.0196,112770.0,112760.0,2.12983997]
[1758546116298,0.0192,112770.0,112760.0,2.12983997]
[1758546116698,0.0192,112770.0,112760.0,2.2092877]
[1758546116898,0.0196,112770.0,112760.0,2.12983997]
[1758546117305,0.0196,112770.0,112760.0,2.2092877]
[1758546117803,0.0001,112780.0,112770.0,0.14579395]
[1758546118004,0.01900518,112790.0,112780.0,0.1015459]
[1758546118201,0.01890518,112790.0,112780.0,0.82238148]
[1758546119298,0.02846616,112790.0,112780.0,0.82238148]
[1758546119498,0.03746616,112790.0,112780.0,0.82238148]
[1758546121005,0.02890518,112790.0,112780.0,0.82238148]
[1758546121201,0.02810518,112790.0,112780.0,1.84427427]
[1758546121503,0.02850518,112790.0,112780.0,1.84427427]
[1758546121802,0.02850518,112790.0,112780.0,1.92396676]
[1758546122196,0.02810518,112790.0,112780.0,1.92396676]
[1758546122401,0.02810518,112790.0,112780.0,1.10584676]
[1758546122602,0.02810518,112790.0,112780.0,1.92392676]
[1758546122808,0.0104,112790.0,112780.0,1.92392676]
[1758546123107,0.0104,112790.0,112780.0,1.84423427]
[1758546123499,0.0104,112790.0,112780.0,1.85412379]
[1758546123711,0.01,112790.0,112780.0,1.02615427]
[1758546123909,0.0094,112790.0,112780.0,1.84423427]
[1758546125005,0.0044,112790.0,112780.0,1.84423427]
[1758546125210,0.0044,112790.0,112780.0,1.85423067]
[1758546125403,0.0044,112790.0,112780.0,1.02615427]
[1758546125810,0.0044,112790.0,112780.0,1.84415427]
[1758546127411,0.0044,112790.0,112780.0,1.92384676]
[1758546127609,0.0044,112790.0,112780.0,1.84415427]
[1758546128314,0.0044,112790.0,112780.0,1.84411427]
[1758546129602,0.0044,112790.0,112780.0,1.92380676]
[1758546130005,0.0001,112800.0,112790.0,0.01295]
[1758546130310,0.09351623,112810.0,112800.0,0.1248202]
[1758546130511,0.09341623,112810.0,112800.0,0.58236578]
[1758546132409,0.10441623,112810.0,112800.0,0.58236578]
[1758546132712,0.10441623,112810.0,112800.0,0.53236578]
[1758546132916,0.10441623,112810.0,112800.0,0.44378558]
[1758546132917,0.11721603,112810.0,112800.0,0.44378558]
[1758546134316,0.11721603,112810.0,112800.0,0.53236598]
[1758546136613,0.11721603,112810.0,112800.0,0.1248204]
[1758546136809,0.11721603,112810.0,112800.0,0.55467022]
[1758546137318,0.11721603,112810.0,112800.0,0.64325072]
[1758546138016,0.11721603,112810.0,112800.0,0.1248205]
[1758546138219,0.11721603,112810.0,112800.0,0.64325072]
[1758546141417,0.11721603,112810.0,112800.0,0.55467022]
[1758546141915,0.37643114,112810.0,112800.0,0.55467022]
[1758546142115,0.36721603,112810.0,112800.0,0.55467022]
[1758546142616,0.62643114,112810.0,112800.0,0.29545511]
[1758546145515,0.63643114,112810.0,112800.0,0.29545511]
[1758546145718,0.63643114,112810.0,112800.0,0.03624]
[1758546145919,0.63643114,112810.0,112800.0,0.29545511]
[1758546146614,0.62643114,112810.0,112800.0,0.29545511]
[1758546147516,0.62643114,112810.0,112790.0,0.01295]
[1758546147517,0.40034119,112810.0,112790.0,0.27216511]
[1758546147816,1.09907511,112800.0,112790.0,0.29333511]
[1758546148017,1.09907511,112800.0,112790.0,0.29373511]
[1758546148508,0.02234,112800.0,112790.0,0.29373511]
[1758546148919,0.10461603,112810.0,112800.0,0.03472]
[1758546149119,0.30596358,112810.0,112800.0,0.55315022]
[1758546149321,0.56517869,112810.0,112800.0,0.29393511]
[1758546149519,0.56417869,112810.0,112800.0,0.29393511]
[1758546149722,0.12664358,112810.0,112800.0,0.29393511]
[1758546150024,0.94456358,112810.0,112800.0,0.55315022]
[1758546150323,0.92403603,112810.0,112800.0,0.55315022]
[1758546150523,0.10691603,112810.0,112800.0,0.55315022]
[1758546150725,0.92443603,112810.0,112800.0,0.55315022]
[1758546150922,0.10691603,112810.0,112800.0,0.55315022]
[1758546151122,0.55419603,112810.0,112800.0,0.55315022]
[1758546151312,0.55379603,112810.0,112800.0,0.55315022]
[1758546151517,0.55419603,112810.0,112800.0,0.55315022]
[1758546151824,0.93339603,112810.0,112800.0,0.55315022]
[1758546152325,0.11591603,112810.0,112800.0,0.55315022]
[1758546152518,0.09357603,112810.0,112800.0,0.64173082]
[1758546152723,0.09317603,112810.0,112800.0,0.64173082]
[1758546153023,0.09357603,112810.0,112800.0,0.64173082]
[1758546153219,0.08377623,112810.0,112800.0,0.64173082]
[1758546154125,0.08377623,112810.0,112800.0,0.87173082]
[1758546154328,0.08377623,112810.0,112800.0,0.64173082]
[1758546154627,0.10611623,112810.0,112800.0,0.64173082]
[1758546155322,0.11581028,112810.0,112800.0,0.64173082]
[1758546157523,0.09347028,112810.0,112800.0,0.64173082]
[1758546158132,0.11581028,112810.0,112800.0,0.64173082]
[1758546158730,0.11581028,112810.0,112800.0,0.46890101]
[1758546159131,0.08377623,112810.0,112800.0,0.71890101]
[1758546159431,0.0124,112810.0,112800.0,1.14419391]
[1758546159626,0.0124,112810.0,112800.0,1.06450142]
[1758546159824,0.0001,112820.0,112810.0,0.1232928]
[1758546160027,0.0008,112820.0,112810.0,0.84851428]
[1758546160226,0.46002,112830.0,112810.0,0.93708708]
[1758546160428,0.48236,112830.0,112820.0,0.46888531]
[1758546160734,0.4919225,112830.0,112820.0,0.46888531]
[1758546160924,0.4927225,112830.0,112820.0,0.46888531]
[1758546161731,0.56331387,112830.0,112820.0,0.38032041]
[1758546162323,0.56331387,112830.0,112820.0,0.38132041]
[1758546162524,0.56531387,112830.0,112820.0,0.38132041]
[1758546162731,0.10539387,112830.0,112820.0,0.38132041]
[1758546163128,0.10639387,112830.0,112820.0,0.38032041]
[1758546164631,0.10439387,112830.0,112820.0,0.38732041]
[1758546165634,0.70439428,112830.0,112820.0,0.02417]
[1758546165828,0.35879387,112830.0,112820.0,0.02417]
[1758546166034,0.35879387,112830.0,112820.0,0.03772]
[1758546166035,0.70439428,112830.0,112820.0,0.03772]
[1758546166229,0.69999428,112830.0,112820.0,0.03772]
[1758546166837,0.35439387,112830.0,112820.0,0.03772]
[1758546168636,0.35439387,112830.0,112820.0,0.38332041]
[1758546168835,1.06419387,112830.0,112820.0,0.38332041]
[1758546169040,0.35439387,112830.0,112820.0,0.38332041]
[1758546169238,1.05615387,112830.0,112820.0,0.38332041]
[1758546170239,0.80615387,112830.0,112820.0,0.38332041]
[1758546170833,0.80615387,112830.0,112820.0,0.03772]
[1758546172239,0.80615387,112830.0,112820.0,0.38332041]
[1758546172735,0.10439387,112830.0,112820.0,0.38332041]
[1758546172937,0.23267387,112830.0,112820.0,0.03772]
[1758546173141,0.23267387,112830.0,112820.0,0.38332041]
[1758546174342,0.23267387,112830.0,112820.0,0.03772]
[1758546174638,0.23267387,112830.0,112820.0,0.38332041]
[1758546175243,0.23267387,112830.0,112820.0,0.003]
[1758546175244,0.85086062,112830.0,112820.0,0.003]
[1758546175542,0.87390573,112830.0,112820.0,0.003]
[1758546177443,0.74562573,112830.0,112820.0,0.003]
[1758546177639,1.56278573,112830.0,112820.0,0.003]
[1758546180742,0.14562532,112830.0,112820.0,0.0388]
[1758546180944,0.96278532,112830.0,112820.0,0.0388]
[1758546181345,0.96198532,112830.0,112820.0,0.0388]
[1758546181546,0.96238532,112830.0,112820.0,0.0388]
[1758546182150,0.96678532,112830.0,112820.0,0.003]
[1758546182552,0.96678532,112830.0,112820.0,0.02528]
[1758546182850,1.31238573,112830.0,112820.0,0.02528]
[1758546183150,1.30798573,112830.0,112820.0,0.0388]
[1758546184259,1.31238573,112830.0,112820.0,0.02528]
[1758546185553,0.14522532,112830.0,112820.0,0.0388]
[1758546185748,0.44082532,112830.0,112820.0,0.0388]
[1758546185951,0.79082573,112830.0,112820.0,0.003]
[1758546186160,0.79082573,112830.0,112820.0,0.02528]
[1758546186849,0.77263939,112830.0,112820.0,0.02528]
[1758546187058,0.49476111,112830.0,112820.0,0.02528]
[1758546187359,1.31188111,112830.0,112820.0,0.02528]
[1758546187763,1.31188111,112830.0,112820.0,0.003]
[1758546187959,1.56188111,112830.0,112800.0,0.01365]
[1758546188258,0.37860041,112810.0,112800.0,0.02228]
[1758546188461,0.85012,112810.0,112800.0,0.02228]
[1758546189263,0.85012,112810.0,112800.0,0.03028]
[1758546190654,0.85012,112810.0,112800.0,0.0418]
[1758546190860,0.84132,112810.0,112800.0,0.0418]
[1758546191364,0.84932,112810.0,112800.0,0.0358]
[1758546191960,0.84832,112810.0,112800.0,0.0358]
[1758546192159,0.85032,112810.0,112800.0,0.0358]
[1758546192359,0.0332,112810.0,112800.0,0.38140041]
[1758546192568,0.85032,112810.0,112800.0,0.38140041]
[1758546193365,0.0332,112810.0,112800.0,0.46998091]
[1758546193665,0.0332,112810.0,112800.0,0.71998091]
[1758546193864,0.41544,112810.0,112800.0,0.71998091]
[1758546194163,0.41584,112810.0,112800.0,0.71998091]
[1758546194466,0.0336,112810.0,112800.0,0.71998091]
[1758546194764,0.01,112810.0,112800.0,1.35558132]
[1758546195067,0.0024,112810.0,112800.0,1.35658132]
[1758546195250,0.0024,112810.0,112800.0,1.01098091]
[1758546195456,0.0004,112810.0,112800.0,1.01098091]
[1758546195661,0.0004,112810.0,112800.0,1.35658132]
[1758546196165,0.0004,112810.0,112800.0,1.43620239]
[1758546196357,0.0001,112820.0,112810.0,0.1236826]
[1758546196662,0.24947693,112830.0,112820.0,0.1236748]
[1758546196958,0.25827195,112830.0,112820.0,0.03511]
[1758546197164,0.25827195,112830.0,112820.0,0.38071041]
[1758546198363,0.26027195,112830.0,112820.0,0.38071041]
[1758546198668,0.26627195,112830.0,112820.0,0.38071041]
[1758546199560,0.26627195,112830.0,112820.0,0.46927521]
[1758546199760,0.24864639,112830.0,112820.0,0.46927521]
[1758546200864,0.24864639,112830.0,112820.0,0.38071041]
[1758546202072,0.11072639,112830.0,112820.0,0.38071041]
[1758546202258,0.50040639,112830.0,112820.0,0.38071041]
[1758546202565,0.50040639,112830.0,112820.0,0.46927521]
[1758546203561,0.11072639,112830.0,112820.0,0.46927521]
[1758546204656,0.10872639,112830.0,112820.0,0.46927521]
[1758546204853,0.10672639,112830.0,112820.0,0.46927521]
[1758546205457,0.10672639,112830.0,112820.0,0.1236748]
[1758546205664,0.10672639,112830.0,112820.0,0.46927521]
[1758546207466,0.10672639,112830.0,112820.0,0.1236748]
[1758546207661,0.10672639,112830.0,112820.0,0.38071041]
[1758546213361,0.10672639,112830.0,112820.0,0.03511]
[1758546214364,0.10672639,112830.0,112820.0,0.38071041]
[1758546220669,0.10672639,112830.0,112820.0,0.29427773]
[1758546220670,0.36589412,112830.0,112820.0,0.29427773]
[1758546220870,0.37292412,112830.0,112820.0,0.28113773]
[1758546221271,0.37292412,112830.0,112810.0,0.27230773]
[1758546221577,1.10405773,112820.0,112810.0,0.29377773]
[1758546223577,0.28245773,112820.0,112810.0,0.29477773]
[1758546223776,1.10381773,112820.0,112810.0,0.29477773]
[1758546223979,1.10381773,112820.0,112810.0,0.29377773]
[1758546224278,1.10981773,112820.0,112810.0,0.29377773]
[1758546224479,0.02929,112820.0,112810.0,0.29377773]
[1758546224978,0.69357,112820.0,112810.0,0.31472674]
[1758546226073,0.85245,112820.0,112810.0,0.29377773]
[1758546226276,0.03129,112820.0,112810.0,0.29377773]
[1758546226476,0.66249,112820.0,112810.0,0.29377773]
[1758546227674,0.03129,112820.0,112810.0,0.29377773]
[1758546227881,0.65621,112820.0,112810.0,0.29377773]
[1758546228577,0.85261,112820.0,112810.0,0.29377773]
[1758546228880,0.03129,112820.0,112810.0,0.29377773]
[1758546229076,0.65629,112820.0,112810.0,0.29377773]
[1758546229678,0.85269,112820.0,112810.0,0.29377773]
[1758546229878,0.85273,112820.0,112810.0,0.29377773]
[1758546230371,0.03129,112820.0,112810.0,0.29377773]
[1758546230568,0.65633,112820.0,112810.0,0.29377773]
[1758546232672,0.85273,112820.0,112810.0,0.57365386]
[1758546232879,0.85273,112820.0,112810.0,0.31448613]
[1758546233081,0.85313,112820.0,112810.0,0.31448613]
[1758546236084,0.85313,112820.0,112810.0,0.29377773]
[1758546237981,0.85313,112820.0,112810.0,0.03461]
[1758546238285,0.85313,112820.0,112810.0,0.29377773]
[1758546239283,1.42210862,112820.0,112800.0,0.01352]
[1758546239474,0.28100773,112810.0,112800.0,0.29599773]
[1758546240577,0.29080773,112810.0,112800.0,0.28247773]
[1758546240780,0.29380773,112810.0,112800.0,0.02331]
[1758546241083,0.54380773,112810.0,112790.0,0.27211773]
[1758546241275,1.38338883,112800.0,112780.0,0.27285773]
[1758546241480,0.28100773,112790.0,112780.0,0.61686773]
[1758546241679,0.6406,112790.0,112780.0,0.61686773]
[1758546241879,1.14976773,112790.0,112780.0,0.0369]
[1758546242079,0.89763,112790.0,112780.0,0.0004]
[1758546242284,0.53803773,112790.0,112780.0,0.28247773]
[1758546242485,0.53803773,112790.0,112780.0,0.28287773]
[1758546242791,0.53100773,112790.0,112780.0,0.29574773]
[1758546243090,1.35192773,112790.0,112780.0,0.29574773]
[1758546243483,1.35192773,112790.0,112780.0,0.29674773]
[1758546244087,1.35196773,112790.0,112780.0,0.29574773]
[1758546244388,1.42328569,112790.0,112780.0,0.29674773]
[1758546244577,0.60232569,112790.0,112780.0,0.29674773]
[1758546244781,1.42324569,112790.0,112780.0,0.29674773]
[1758546245291,0.60232569,112790.0,112780.0,0.29674773]
[1758546245488,1.16387796,112790.0,112780.0,0.29674773]
[1758546245688,1.16387796,112790.0,112780.0,0.55591546]
[1758546245991,0.91391796,112790.0,112780.0,0.55591546]
[1758546246383,0.91431796,112790.0,112780.0,0.55591546]
[1758546247487,0.09355796,112790.0,112780.0,0.55591546]
[1758546247791,0.52351796,112790.0,112780.0,0.55591546]
[1758546248587,0.09355796,112790.0,112780.0,0.68591546]
[1758546248787,0.22227796,112790.0,112780.0,0.03758]
[1758546249087,0.22227796,112790.0,112780.0,0.55591546]
[1758546249690,0.09355796,112790.0,112780.0,0.83591546]
[1758546249894,0.46759796,112790.0,112780.0,0.83591546]
[1758546250489,0.07171796,112790.0,112780.0,1.43367769]
[1758546250882,0.07131796,112790.0,112780.0,1.43367769]
[1758546251082,0.07131796,112790.0,112780.0,1.17450996]
[1758546251083,0.0004,112790.0,112780.0,1.17450996]
[1758546251991,0.0004,112790.0,112780.0,1.43367769]
[1758546252290,0.58062,112800.0,112790.0,0.03618]
[1758546252291,0.0001,112800.0,112790.0,0.03618]
[1758546252490,0.84494,112810.0,112800.0,0.03618]
[1758546252691,0.84484,112810.0,112800.0,0.55451546]
[1758546253187,0.8448,112810.0,112800.0,0.55451546]
[1758546253583,0.8452,112810.0,112800.0,0.55451546]
[1758546254291,0.8472,112810.0,112800.0,0.55451546]
[1758546254492,0.8532,112810.0,112800.0,0.55451546]
[1758546256092,0.03024,112810.0,112800.0,1.11451546]
[1758546256295,0.008,112810.0,112800.0,0.92451546]
[1758546256591,0.0084,112810.0,112800.0,0.92451546]
[1758546257396,0.02958,112810.0,112800.0,0.92451546]
[1758546257692,0.02958,112810.0,112800.0,1.07451546]
[1758546258089,0.0084,112810.0,112800.0,1.07451546]
[1758546258991,0.0084,112810.0,112800.0,1.16309426]
[1758546259789,0.008,112810.0,112800.0,1.16309426]
[1758546259995,0.0084,112810.0,112800.0,1.07451546]
[1758546260692,0.0084,112810.0,112800.0,0.86451546]
[1758546261389,0.02958,112810.0,112800.0,0.86451546]
[1758546261591,0.02958,112810.0,112800.0,1.08451546]
[1758546262694,0.02958,112810.0,112800.0,0.83451546]
[1758546263694,0.02958,112810.0,112800.0,0.81451546]
[1758546263882,0.02958,112810.0,112800.0,0.28618]
[1758546264386,0.02958,112810.0,112800.0,0.29534773]
[1758546264583,0.02958,112810.0,112800.0,0.55451546]
[1758546265189,0.28938,112810.0,112800.0,0.28247773]
[1758546265585,0.27958,112810.0,112800.0,0.55441546]
[1758546265794,1.10654,112810.0,112800.0,0.55441546]
[1758546270688,0.27958,112810.0,112800.0,0.55441546]
[1758546271097,1.0301,112810.0,112800.0,0.55441546]
[1758546271292,0.02958,112810.0,112800.0,0.83441546]
[1758546271496,0.85582,112810.0,112800.0,0.83441546]
[1758546271802,0.85542,112810.0,112800.0,0.55441546]
[1758546272001,0.85582,112810.0,112800.0,0.55441546]
[1758546273794,0.85613,112810.0,112800.0,0.57479317]
[1758546275302,1.11529773,112810.0,112800.0,0.31562544]
[1758546276001,1.11529773,112810.0,112800.0,0.29524773]
[1758546276198,0.85613,112810.0,112800.0,0.29524773]
[1758546276505,0.85613,112810.0,112800.0,0.55441546]
[1758546276700,1.11529773,112810.0,112800.0,0.29524773]
[1758546276904,1.12509773,112810.0,112800.0,0.29524773]
[1758546278702,1.12509773,112810.0,112800.0,0.28247773]
[1758546280306,1.16688848,112810.0,112800.0,0.28247773]
[1758546280499,0.90636075,112810.0,112800.0,0.28247773]
[1758546280704,0.90636075,112810.0,112800.0,0.02331]
[1758546281702,1.50205071,112810.0,112790.0,0.01287]
[1758546281909,0.90646075,112810.0,112790.0,0.01287]
[1758546282501,0.90646075,112810.0,112790.0,0.35855996]
[1758546282808,1.25115071,112810.0,112790.0,0.01287]
[1758546283002,0.0044,112800.0,112790.0,0.02127]
[1758546283306,0.02561,112800.0,112790.0,0.36695996]
[1758546283507,0.02561,112800.0,112790.0,0.02127]
[1758546283903,0.87510878,112800.0,112790.0,0.03404]
[1758546284203,0.87050878,112800.0,112790.0,0.03404]
[1758546284805,0.87350878,112800.0,112790.0,0.03404]
[1758546285204,0.87450878,112800.0,112790.0,0.37972996]
[1758546286003,0.04874878,112800.0,112790.0,0.37972996]
[1758546286207,0.87450878,112800.0,112790.0,0.37972996]
[1758546286508,0.87402878,112800.0,112790.0,0.37972996]
[1758546288313,0.04874878,112800.0,112790.0,0.37972996]
[1758546288508,0.87394878,112800.0,112790.0,0.37972996]
[1758546289002,0.04874878,112800.0,112790.0,0.37972996]
[1758546289208,0.60076511,112800.0,112790.0,0.96972996]
[1758546289404,0.57724,112800.0,112790.0,0.96972996]
[1758546289602,0.57764,112800.0,112790.0,0.96972996]
[1758546289796,0.59885,112800.0,112790.0,0.96972996]
[1758546290201,0.59845,112800.0,112790.0,0.96972996]
[1758546290401,0.59885,112800.0,112790.0,0.96972996]
[1758546292305,0.02561,112800.0,112790.0,0.96972996]
[1758546292610,0.29381,112800.0,112790.0,0.62972996]
[1758546293009,0.02561,112800.0,112790.0,0.62972996]
[1758546293207,0.85093,112800.0,112790.0,0.62972996]
[1758546301613,0.02561,112800.0,112790.0,0.62972996]
[1758546301813,0.0044,112800.0,112790.0,0.96972996]
[1758546302012,0.0044,112800.0,112790.0,0.80831536]
[1758546302216,0.004,112800.0,112790.0,1.05831536]
[1758546302513,0.0044,112800.0,112790.0,1.40400532]
[1758546302715,0.004,112800.0,112790.0,1.05831536]
[1758546302914,0.004,112800.0,112790.0,1.13793643]
[1758546303116,0.0044,112800.0,112790.0,1.13793643]
[1758546303305,0.0044,112800.0,112790.0,1.05831536]
[1758546303813,0.004,112800.0,112790.0,1.40400532]
[1758546304014,0.0044,112800.0,112790.0,1.40400532]
[1758546304405,0.0044,112800.0,112790.0,1.05831536]
[1758546304810,0.0004,112800.0,112790.0,1.05831536]
[1758546305010,0.0004,112800.0,112790.0,1.05931536]
[1758546306021,0.0001,112810.0,112800.0,0.1229378]
[1758546306220,0.02309,112820.0,112810.0,0.03436]
[1758546306416,0.02299,112820.0,112810.0,0.52004996]
[1758546306618,0.02299,112820.0,112810.0,0.38004996]
[1758546308124,0.03099,112820.0,112810.0,0.38004996]
[1758546308520,0.03099,112820.0,112810.0,0.02123]
[1758546308818,0.03802,112820.0,112810.0,0.02123]
[1758546309017,0.03099,112820.0,112810.0,0.03436]
[1758546311828,0.85431,112820.0,112810.0,0.03436]
[1758546312026,0.85431,112820.0,112810.0,0.38004996]
[1758546313532,0.85331,112820.0,112810.0,0.38004996]
[1758546314029,0.85031,112820.0,112810.0,0.38004996]
[1758546315333,0.85031,112820.0,112810.0,0.03436]
[1758546315632,1.45302996,112820.0,112800.0,0.01313]
[1758546315928,1.20312996,112820.0,112800.0,0.15313]
[1758546316124,1.20312996,112820.0,112810.0,0.02292]
[1758546316325,1.20302996,112820.0,112810.0,0.02292]
[1758546317230,1.20002996,112820.0,112810.0,0.02292]
[1758546317436,0.03102,112820.0,112810.0,0.02292]
[1758546317623,0.84567,112820.0,112810.0,0.38196996]
[1758546318222,0.84595,112820.0,112810.0,0.38196996]
[1758546318433,0.85095,112820.0,112810.0,0.38196996]
[1758546318629,0.86075,112820.0,112810.0,0.38196996]
[1758546318835,0.86075,112820.0,112810.0,0.03628]
[1758546319234,0.85095,112820.0,112810.0,0.03628]
[1758546319529,0.85095,112820.0,112810.0,0.38196996]
[1758546319925,0.02799,112820.0,112810.0,0.38196996]
[1758546320133,0.84919,112820.0,112810.0,0.38196996]
[1758546320332,0.85019,112820.0,112810.0,0.38196996]
[1758546321233,0.87364508,112820.0,112810.0,0.38196996]
[1758546321432,0.87364508,112820.0,112810.0,0.03628]
[1758546322939,0.87296508,112820.0,112810.0,0.03628]
[1758546326427,0.87228508,112820.0,112810.0,0.03628]
[1758546326627,0.87228508,112820.0,112810.0,0.40196996]
[1758546326628,0.05044508,112820.0,112810.0,0.40196996]
[1758546326830,0.87228508,112820.0,112810.0,0.38196996]
[1758546328232,0.87229415,112820.0,112810.0,0.38196996]
[1758546330435,0.84883,112820.0,112810.0,0.38196996]
[1758546331235,0.87231221,112820.0,112810.0,0.38196996]
[1758546331429,0.87191221,112820.0,112810.0,0.38196996]
[1758546335437,0.87151221,112820.0,112810.0,0.38196996]
[1758546335940,0.05047221,112820.0,112810.0,0.38196996]
[1758546336140,0.87115221,112820.0,112810.0,0.38196996]
[1758546336342,0.87035221,112820.0,112810.0,0.38196996]
[1758546336639,0.87075221,112820.0,112810.0,0.38196996]
[1758546336836,0.05007221,112820.0,112810.0,0.38196996]
[1758546337042,0.82496,112820.0,112810.0,0.65196996]
[1758546337342,0.84618,112820.0,112810.0,0.65196996]
[1758546337540,0.84658,112820.0,112810.0,0.65196996]
[1758546339342,0.84658,112820.0,112810.0,0.74054066]
[1758546339946,0.82496,112820.0,112810.0,0.74054066]
[1758546340145,0.0044,112820.0,112810.0,0.74054066]
[1758546340341,0.004,112820.0,112810.0,0.74054066]
[1758546340644,0.004,112820.0,112810.0,0.91310088]
[1758546340838,0.0044,112820.0,112810.0,0.91310088]
[1758546342542,0.02602,112820.0,112810.0,0.82453018]
[1758546342738,0.02602,112820.0,112810.0,0.30628]
[1758546342941,0.02602,112820.0,112810.0,0.56540509]
[1758546347455,0.02602,112820.0,112810.0,0.30628]
[1758546347646,0.02602,112820.0,112810.0,0.56540509]
[1758546348046,0.02602,112820.0,112810.0,0.30628]
[1758546348251,0.02602,112820.0,112810.0,0.56540509]
[1758546349844,0.02602,112820.0,112810.0,0.82453018]
[1758546350746,0.02602,112820.0,112810.0,0.29540509]
[1758546352354,0.02602,112820.0,112810.0,0.03628]
[1758546352549,0.02602,112820.0,112810.0,0.29540509]
[1758546355656,0.02602,112820.0,112810.0,0.61540509]
[1758546360665,0.8507,112820.0,112810.0,0.61540509]
[1758546361167,0.8507,112820.0,112810.0,0.35628]
[1758546361465,0.86840232,112820.0,112810.0,0.29540509]
[1758546361861,0.04372232,112820.0,112810.0,0.29540509]
[1758546362067,0.04372232,112820.0,112810.0,0.86453018]
[1758546362266,0.53168232,112820.0,112810.0,0.86453018]
[1758546362466,0.04372232,112820.0,112810.0,0.86453018]
[1758546362659,0.86820232,112820.0,112810.0,0.86453018]
[1758546362967,0.86820232,112820.0,112810.0,0.29540509]
[1758546364570,0.04372232,112820.0,112810.0,0.29540509]
[1758546364769,0.77844232,112820.0,112810.0,0.29540509]
[1758546365167,0.86784232,112820.0,112810.0,0.29540509]
[1758546365667,0.85014,112820.0,112810.0,0.29540509]
[1758546367273,0.85002,112820.0,112810.0,0.29540509]
[1758546367764,0.02602,112820.0,112810.0,0.64310148]
[1758546368071,0.49659,112820.0,112810.0,0.96310148]
[1758546368272,0.49659,112820.0,112810.0,0.70397639]
[1758546368570,0.49619,112820.0,112810.0,0.70397639]
[1758546368770,0.49619,112820.0,112810.0,0.96310148]
[1758546369067,0.0044,112820.0,112810.0,0.96310148]
[1758546369270,0.82872,112820.0,112810.0,0.96310148]
[1758546369468,0.82872,112820.0,112810.0,0.4448513]
[1758546369667,0.82872,112820.0,112810.0,0.96310148]
[1758546370266,0.85019,112820.0,112810.0,0.96310148]
[1758546373063,0.02587,112820.0,112810.0,0.96310148]
[1758546373266,0.472,112820.0,112810.0,0.96310148]
[1758546374876,0.49368,112820.0,112810.0,0.96310148]
[1758546375076,0.02648,112820.0,112810.0,0.96310148]
[1758546375278,0.0044,112820.0,112810.0,0.96310148]
[1758546377377,0.004,112820.0,112810.0,0.96310148]
[1758546378078,0.02648,112820.0,112810.0,0.96310148]
[1758546378276,0.0044,112820.0,112810.0,0.96310148]
[1758546380075,0.0044,112820.0,112810.0,0.96310138]
[1758546380371,0.02648,112820.0,112810.0,0.96310138]
[1758546380677,0.0044,112820.0,112810.0,0.96310138]
[1758546383780,0.02648,112820.0,112810.0,0.96310138]
[1758546385380,0.0044,112820.0,112810.0,0.96310138]
[1758546385778,0.02566,112820.0,112810.0,0.96310138]
[1758546385974,0.02566,112820.0,112810.0,0.64310138]
[1758546386177,0.28478509,112820.0,112810.0,0.09628]
[1758546386378,0.30238771,112820.0,112810.0,0.29540509]
[1758546387082,0.04326262,112820.0,112810.0,0.29540509]
[1758546388186,0.30238771,112820.0,112810.0,0.29540509]
[1758546388479,0.56218771,112820.0,112810.0,0.28204509]
[1758546388677,0.56218771,112820.0,112810.0,0.25912509]
[1758546388877,0.56218771,112820.0,112810.0,0.28166509]
[1758546389282,0.55238771,112820.0,112810.0,0.29484509]
[1758546389778,0.56218771,112820.0,112810.0,0.25912509]
[1758546390172,0.56218771,112820.0,112810.0,0.28166509]
[1758546391683,0.58563599,112820.0,112810.0,0.28166509]
[1758546391877,0.3265109,112820.0,112810.0,0.25912509]
[1758546392082,0.58563643,112820.0,112810.0,0.25912509]
[1758546392478,0.58563643,112820.0,112810.0,0.28166509]
[1758546392678,0.32651134,112820.0,112810.0,0.28166509]
[1758546392881,0.58563643,112820.0,112810.0,0.28166509]
[1758546393487,0.58563643,112820.0,112810.0,0.02254]
[1758546393684,0.58563643,112820.0,112810.0,0.28166509]
[1758546393887,0.32651134,112820.0,112810.0,0.28166509]
[1758546394087,0.58563643,112820.0,112810.0,0.29484509]
[1758546394281,1.13759134,112820.0,112810.0,0.29484509]
[1758546394483,0.29326262,112820.0,112810.0,0.29484509]
[1758546395085,1.11470262,112820.0,112810.0,0.29484509]
[1758546395982,0.04326262,112820.0,112810.0,0.64254128]
[1758546396282,0.86470262,112820.0,112810.0,0.29484509]
[1758546396680,0.04286262,112820.0,112810.0,0.29484509]
[1758546396877,0.86454262,112820.0,112810.0,0.29484509]
[1758546397189,0.04326262,112820.0,112810.0,0.29484509]
[1758546397378,0.86454262,112820.0,112810.0,0.29484509]
[1758546397777,0.04326262,112820.0,112810.0,0.29484509]
[1758546397983,0.86470262,112820.0,112810.0,0.38341619]
[1758546398789,0.86470262,112820.0,112810.0,0.29484509]
[1758546400588,0.86470262,112820.0,112810.0,0.38133145]
[1758546400791,0.85413,112820.0,112810.0,0.02254]
[1758546400989,0.8471,112820.0,112810.0,0.03572]
[1758546403689,1.19974145,112820.0,112800.0,0.35874145]
[1758546403895,1.22330301,112820.0,112800.0,0.35874145]
[1758546404692,1.22330301,112820.0,112810.0,0.02254]
[1758546404896,1.22220301,112820.0,112810.0,0.02254]
[1758546405390,1.21920301,112820.0,112810.0,0.02254]
[1758546405594,1.21920301,112820.0,112800.0,0.01413]
[1758546405794,0.37667145,112810.0,112800.0,0.001]
[1758546406096,0.39473774,112810.0,112790.0,0.01277]
[1758546406394,0.84334,112800.0,112790.0,0.15531]
[1758546406595,0.84334,112800.0,112790.0,0.50132145]
[1758546407990,0.84774,112800.0,112790.0,0.03571]
[1758546408189,0.84334,112800.0,112790.0,0.03531]
[1758546408588,0.84334,112800.0,112790.0,0.03571]
[1758546408990,0.84334,112800.0,112790.0,0.03671]
[1758546409697,0.84434,112800.0,112790.0,0.03571]
[1758546409885,0.84734,112800.0,112790.0,0.03571]
[1758546410393,0.8471,112800.0,112790.0,0.03571]
[1758546411591,0.02526,112800.0,112790.0,0.03571]
[1758546411796,0.18942,112800.0,112790.0,0.03571]
[1758546412502,0.02526,112800.0,112790.0,0.03571]
[1758546412800,0.18986,112800.0,112790.0,0.38132145]
[1758546413394,0.18986,112800.0,112790.0,0.46990835]
[1758546414396,0.18986,112800.0,112790.0,0.38132145]
[1758546414893,0.84714,112800.0,112790.0,0.38132145]
[1758546415289,0.84678,112800.0,112790.0,0.38132145]